Workbook

Sheet Cover Page
D1: Add company logo
N2: Version 23.4a (for incinerators) - 15/11/2023
N4: Note that there is another version of this template available for co-incinerators
B8: Add photo
N13: Notes:
N14: This template may require adjustments by individual operators to meet specific reporting requirements as defined in the site Permit(s)
B29: Annual Performance Report 2023
B31: Permit EPR/CP3535CK
B33: Javelin Park Energy Recovery Facility
B35: other name of facility (if applicable)
B37: Urbaser Environmental Ltd
B39: Year: | C39: 2023
B41: Address: | C41: Javelin Park, Haresfield, Gloucestershire, GL2 7NQ
B43: Tel: | C43: 01452 379885
B45: Email: | C45: info@ubbgloucestershire.co.uk
B47: Prepared by: | C47: Jacob Towl | F47: Position: | G47: Environmental Technician
B49: Approved by: | C49: Gary Relf | F49: Position: | G49: QHSE Manager
B51: Version: | C51: 1
B53: Issue Date: | C53: 2024-01-25

Sheet Contents
A1: =+'Cover Page'!$B$29 -> Annual Performance Report 2023 | E1: =+'Cover Page'!$B$33 -> Javelin Park Energy Recovery Facility
A3: Contents | K3: Notes:
A4: Section | B4: Subject | H4: Page | K4: Section references and Page nos. to be inserted
B5: Facility Information | H5: 3 | K5: Sections and Subjects may require adjustment by individual operators to meet specific reporting requirements as defined in the sites Permit(s)
B6: Operational Data | H6: 4
B7: Operational Summary | H7: 6
B8: Performance Form 1 | H8: 7
B9: Energy Form 1 | H9: 8
B10: Permit Compliance | H10: 9
B11: Improvements | H11: 10
B12: Public Liasion | H12: 11
B13: Carbon dioxide and nitrous oxide emissions | H13: 12
B14: Residue Quality | H14: 14
B15: Emissions to Water | H15: 15
B16: Emissions to Air (periodically monitored) | H16: 16
B17: Emissions to Air (continuously monitored) | H17: 17
B18: Hydrogen Chloride emissions | H18: 19
B19: Sulphur Dioxdie emsissions | H19: 20
B20: Oxides of Notrigen emissions | H20: 21
B21: Total Organic Carbon emissions | H21: 22
B22: Particulate Matter emissions | H22: 23
B23: Carbon Monoxide emissions | H23: 25
B24: Ammonia emissions | H24: 26
A27: Version Control
A28: Section | B28: Information | H28: Date
A29: V1 | H29: 2024-01-29
A35: Distribution
A36: Copy | B36: Name, Role | H36: No.
A45: This report is required under the Industrial Emissions Directive’s Article 55(2) requirements on reporting and public information on waste incineration plants and co-incineration plants, which require the operator to produce an annual report on the functioning and monitoring of the plant and make it available to the public.

Sheet Facility Info
A1: =+'Cover Page'!$B$29 -> Annual Performance Report 2023 | E1: =+'Cover Page'!$B$33 -> Javelin Park Energy Recovery Facility
A3: Plant Description and Design | K3: Notes:
A5: The installation is designed to recover energy from residual municipal waste, and from commercial and industrial waste of a similar nature to residual municipal waste, by incineration. Energy will be recovered from the installation in the form of electricity, which will be exported to the National Grid. The installation is located on a 4.8 hectare site at grid reference 380040,210430, a short distance south of Junction 12 of the M5 motorway in Gloucestershire. The village of Haresfield is located approximately 1.0 km to the east of the site and the Quedgeley Business Park is located approximately 1.5 km to the north of the site on either side of the motorway. The installation will process up to 190,000 tonnes of waste per year (23.75 tonnes per hour) in a single incineration line. The incinerator is of a mass burn moving grate design. Waste will be delivered to the facility by road in covered vehicles or containers and tipped within the main building in the waste reception hall directly into the waste bunker. The waste is stored and mixed in the waste bunker prior to being burnt in the moving grate incinerator plant. | K5: Include summary of plant design, design capacity, no. of combustion lines, electrical and heat capacity and any other general information that descibes the facility, its location and purpose
A20: Summary of Operational Processes and Procedures
A22: Heat from the combustion process is used to generate high pressure steam in a multi stage boiler plant which is integral to the combustion process. The high pressure steam is fed to a steam turbine to generate electricity. The ERF has a total capacity of approximately 65.3 MW (thermal input) and is capable of generating up to 17.4 MWe of electrical power, of which up to 14.5 MW will be exported to the National Grid. Provision has been made in the design for the plant to be capable of supplying heat in the form of steam or hot water, once a viable heat user becomes available to take the heat as an output. The furnace design ensures that a temperature of at least 850°C for a period of at least two seconds is achieved in the combustion chamber. To ensure that the temperature does not fall below 850°C, auxiliary burners firing low sulphur fuel oil are automatically triggered by online process monitoring equipment. The auxiliary burners are also used to achieve and maintain the minimum furnace temperature during start up and shutdown periods. Combustion gases are cleaned before they are released to atmosphere. There are four components to the flue gas cleaning and abatement technique: • Selective Non-Catalytic Reduction (SNCR), involving the injection of ammonia into the combustion chamber, provides for the abatement of nitrogen oxides; • hydrated lime reagent, injected to neutralise acid gas compounds; • activated carbon, injected to absorb mercury, dioxins and furans; and • bag filtration to remove fine particulates. The residues which are collected on the bag filters are directed to a residues silo. Part of the residues are recycled to the reagent injection points to ensure maximum usage of the lime content. Cleaned flue gases exiting the abatement system of the incinerator line are discharged through a 70 m tall stack. Exhaust flue gases are continuously monitored for particulate matter, oxides of nitrogen, sulphur dioxide, carbon monoxide, total organic carbon, hydrogen chloride and ammonia Monitoring for heavy metals, dioxins, nitrous oxide and hydrogen fluoride is carried out periodically. Under normal circumstances there are no liquid effluent emissions from the installation. Although some rainwater is harvested for use in the process, the site has a net consumption of water. Waste water arisings from boiler blowdown and water treatment backwash are recycled to the Incinerator Bottom Ash (IBA) quench system. Sludge from the IBA waste water pit will be periodically tankered off-site for appropriate treatment. | K22: Include summary of key processes and procedures such as (but not limited to); waste reception, control rooms, grate, bed and bolier, energy & heat generation, cooling systems, residue management, emission controls, health and safety systems, maintenance

Sheet Operational Data
A1: =+'Cover Page'!$B$29 -> Annual Performance Report 2023 | E1: =+'Cover Page'!$B$33 -> Javelin Park Energy Recovery Facility
A3: Operational Data
A4: Plant Size | B4: 190000 | D4: tonnes pa | E4: 65.3 | F4: MWth | G4: 17.4 | H4: MWe | J4: Notes:
A5: No. of combustion lines | B5: 1 | D5: No. of Turbines: | F5: 1 | J5: * - RDF to include SRF
J6: ** - Combusted tonnage = tonnes delivered in period + (tonnes in bunker at start of period – tonnes in bunker at end of period), or equivalent calculation depending on plant type
A7: Waste types received | B7: Unit | C7: Q1 | D7: Q2 | E7: Q3 | F7: Q4 | G7: Year Total | H7: %
A8: Household / Local Authority | B8: tonnes | C8: 32902.64 | D8: 33576.08 | E8: 32360.4 | F8: 32394.18 | G8: =SUM(C8:F8) -> 131233.3 | H8: =IF(G8>0,G8/$G$18,"-") -> 0.7062643746
A9: Commercial & Industrial | C9: 15657.82 | D9: 15364.7 | E9: 9284.3 | F9: 14273.16 | G9: =SUM(C9:F9) -> 54579.98 | H9: 0.2937356254 | J9: *** - CHP plants only
A10: Hazardous | G10: 0 | H10: - | J10: **** Availability Definition: 'the availability of a line is to be calculated by the number of hours the line reported Continuously Monitored emission levels to the Regulator through the calendar year divided by the total number of hours in that year. The overall plant availability is calculated as the Mean of all lines in the plant. For clarity this includes periods of abnormal operation.' Rationale: The primary function of an Energy from Waste facility is the disposal of waste. It follows therefore that the availability of a plant is determined by the period of time a facility spends undertaking this activity.
A11: Clinical | G11: 0 | H11: -
A12: Waste wood (biomass) | G12: 0 | H12: -
A13: Refuse Derived Fuel * - H'hold/LA | G13: =SUM(C13:F13) -> 0 | H13: -
A14: Refuse Derived Fuel * - C&I | G14: 0 | H14: -
A15: Other [Please specify] | G15: 0 | H15: -
A16: Other [Please specify] | G16: 0 | H16: -
A17: Other [Please specify] | G17: 0 | H17: -
A18: Total waste received | C18: =SUM(C8:C17) -> 48560.46 | D18: =SUM(D8:D17) -> 48940.78 | E18: =SUM(E8:E17) -> 41644.7 | F18: =SUM(F8:F17) -> 46667.34 | G18: 185813.28
A19: Rejected Waste | G19: =SUM(C19:F19) -> 0 | H19: =IF(G19>0,G19/$G$18,"-") -> -
A20: Unprocessed waste transferred out | G20: =SUM(C20:F20) -> 0 | H20: =IF(G20>0,G20/$G$18,"-") -> -
A21: Total waste combusted ** | C21: 47995.63 | D21: 47352.95 | E21: 38577.97 | F21: 53671.25 | G21: =SUM(C21:F21) -> 187597.8
J22: Password for protected cells A password has been set to prevent accidental editing of cells with formulae. If you still need to make an edit for some reason then the password = 1234
A23: Energy Usage / Export | B23: Unit | C23: Q1 | D23: Q2 | E23: Q3 | F23: Q4 | G23: Year Total | H23: KWh/te
A24: Power Generated | B24: MWh | C24: 36003.9 | D24: 36083.86 | E24: 28222.291 | F24: 40012.59 | G24: =SUM(C24:F24) -> 140322.641 | H24: =IF(G24>0,G24*1000/$G$21,"-") -> 747.9972633
A25: Power Exported | C25: 32193.36 | D25: 32143.57 | E25: 24862.75 | F25: 35999.12 | G25: =SUM(C25:F25) -> 125198.8 | H25: =IF(G25>0,G25*1000/$G$21,"-") -> 667.3788285
A26: Power Used on site | C26: 3984.28 | D26: 4168.75 | E26: 3566.031 | F26: 4203.5 | G26: =SUM(C26:F26) -> 15922.561 | H26: =IF(G26>0,G26*1000/$G$21,"-") -> 84.87605398
A27: Power Imported | C27: 175.4 | D27: 236.2 | E27: 376.6 | F27: 21.6 | G27: 809.8 | H27: =IF(G27>0,G27*1000/$G$21,"-") -> 4.316681752
A28: Parasitic Load | B28: % | C28: =IF(C24>0,1-C25/(C24+C27),"-") -> 0.1101718386 | D28: =IF(D24>0,1-D25/(D24+D27),"-") -> 0.1149912748 | E28: =IF(E24>0,1-E25/(E24+E27),"-") -> 0.1306393664 | F28: =IF(F24>0,1-F25/(F24+F27),"-") -> 0.1007905992 | G28: =IF(G24>0,1-G25/(G24+G27),"-") -> 0.1128985008
A29: Thermal Energy Produced *** | B29: MWh | G29: =SUM(C29:F29) -> 0 | H29: =IF(G29>0,G29*1000/$G$21,"-") -> -
A30: Thermal Energy Exported *** | G30: 0 | H30: =IF(G30>0,G30*1000/$G$21,"-") -> -
A31: R1 value (if applicable) | B31: R1 | G31: 0.78
A33: Waste Disposal & Recovery | B33: Unit | C33: Q1 | D33: Q2 | E33: Q3 | F33: Q4 | G33: Year Total | H33: % inputs
A34: APC Residues - produced | B34: tonnes | C34: 1088.55 | D34: 1076.34 | E34: 851.38 | F34: 1217.11 | G34: =SUM(C34:F34) -> 4233.38 | H34: =IF(G34>0,G34/$G$21,"-") -> 0.02256625611
A35: IBA - produced | C35: 10441.68 | D35: 10920.32 | E35: 7741.48 | F35: 11962.94 | G35: 41066.42 | H35: =IF(G35>0,G35/$G$21,"-") -> 0.2189067249
A36: Metals recycling | C36: 405.46 | D36: 387.84 | E36: 1182.44 | F36: 981.12 | G36: =SUM(C36:F36) -> 2956.86 | H36: 0.0157616987
A37: Other | C37: 0 | D37: 0 | E37: 0 | F37: 0 | G37: =SUM(C37:F37) -> 0 | H37: -
A38: Other | C38: 0 | D38: 0 | E38: 0 | F38: 0 | G38: 0 | H38: -
A39: Other | C39: 0 | D39: 0 | E39: 0 | F39: 0 | G39: 0 | H39: -
A41: Raw Material Usage | B41: Unit | C41: Q1 | D41: Q2 | E41: Q3 | F41: Q4 | G41: Year Total | H41: kg or Ltr /te
A42: Mains Water | B42: ltrs | C42: 6992.77 | D42: 8070.29 | E42: 5231.31 | F42: 3922.4 | G42: =SUM(C42:F42) -> 24216.77 | H42: =IF(G42>0,G42/$G$21,"-") -> 0.129088774
A43: Other Water | B43: ltrs | G43: 0 | H43: =IF(G43>0,G43/$G$21,"-") -> -
A44: Ammonia | B44: kgs | C44: 77770 | D44: 43200 | E44: 21310 | F44: 44950 | G44: 187230 | H44: 0.9980394226
A45: Urea | B45: kgs | G45: =SUM(C45:F45) -> 0 | H45: -
A46: Activated Carbon | B46: kgs | C46: 11520 | D46: 11720 | E46: 9340 | F46: 12590 | G46: 45170 | H46: 0.2407810753
A47: Lime / hydrated lime | B47: kgs | C47: 554210 | D47: 496670 | E47: 443860 | F47: 528730 | G47: 2023470 | H47: 10.78621391
A48: Fuel oil | B48: ltrs | C48: 43790 | D48: 63202.41 | E48: 85595.83 | F48: 261 | G48: 192849.24 | H48: 1.027993079
A49: Gas | B49: cuf | G49: 0
A50: Other | G50: 0
A52: Summary | B52: Line/Unit | C52: Q1 | D52: Q2 | E52: Q3 | F52: Q4 | G52: Year Total | I52: Hrs in year
A53: Availability of waste combustion by line, hrs **** | B53: =+B5 -> 1 | C53: 1994 | D53: 1999.16 | E53: 1801.3 | F53: 2208 | G53: =SUM(C53:F53) -> 8002.46 | H53: =+G53/$I$53 -> 0.9135228311 | I53: 8760
B54: 2 | G54: 0 | H54: =+G54/$I$53 -> 0
B55: 3 | G55: 0 | H55: 0
B56: 4 | G56: 0 | H56: 0
B57: 5 | G57: =SUM(C57:F57) -> 0 | H57: 0
A58: Overall Availability, mean avg. of all lines, hrs | G58: =AVERAGE(G53) -> 8002.46 | H58: 0.9135228311
A59: Hours of turbine operations, hrs | B59: 1 | C59: 1982 | D59: 1964.17 | E59: 1733.02 | F59: 2193.54 | G59: 7872.73 | H59: 0.8987134703
A60: Hours of turbine operations, hrs | B60: 2 | G60: 0 | H60: 0
A61: Hours of heat / steam export | G61: 0 | H61: =IF(B61>0,G60/I53,"n/a") -> n/a
A62: Net Calorific Value of waste | B62: MJ/kg
A63: Abnormal Events | B63: qty. | C63: 1 | D63: 0 | E63: 1 | F63: 0 | G63: 2 | H63: =IF(G63>0,"yes","no") -> yes
A64: Abnormal operation | B64: hours | C64: 3 | E64: 0.16 | G64: 3.16 | H64: =+(G64)/I53 -> 0.0003607305936
A65: Permit Breaches | B65: qty. | C65: 1 | D65: 0 | E65: 0 | F65: 0 | G65: 1 | H65: =IF(G65>0,"yes","no") -> yes

Sheet Operational Summary
A1: =+'Cover Page'!$B$29 -> Annual Performance Report 2023 | E1: =+'Cover Page'!$B$33 -> Javelin Park Energy Recovery Facility
A3: Summary of Plant Operations and Maintenance during the reporting year | K3: Notes:
A5: The boiler was in operation for 8,002 hours throughout 2023, with the turbine available for 7,873 hours resulting in 91.4% and 89.9% availability respectively. Downtime included the planned annual maintenance shutdown in which a number of internal inspections and repairs took place. There were also a few periods of unplanned shutdowns to attend to some minor operational disruptions. | K5: Include summary of key operational and/or mainteanance activity undertaken in the year, such as any major component upgrades and/or replacements
A29: Summary of Residue Handling for the reporting year
A31: APCr continues to be sent to Peterborough. The majority of IBA has been sent to Nottinghamshire, with IBAA going to Bristol. | K31: Include in here a summary of residue handling regimes and destinations

Sheet Perf. Form 1
A1: =+'Cover Page'!C39 -> 2023 | B1: Annual Reporting Performance Form 1
A3: =+'Cover Page'!B31 -> Permit EPR/CP3535CK | F3: Operator: | G3: =+'Cover Page'!B37:I37 -> 0
A4: Facility: | B4: =+'Cover Page'!B33:I33 -> Javelin Park Energy Recovery Facility | F4: Form: | G4: Performance 1
A6: Reporting Period from: | D6: 2023-01-01 | F6: to: | G6: 2023-12-31
A8: =+A1 -> 2023 | B8: Annual Reporting of Waste Disposal and Recovery
A9: Waste Description | C9: Disposal Route(s) | E9: Disposal Tonnes | G9: Recovery Tonnes | I9: % / tonne of waste incinerated
A10: 1) Hazardous Wastes
A11: APC Residues | C11: East Northamptonshire | E11: 4063.62 | I11: =IF((E11+G11)>0,(E11+G11)/'Operational Data'!$G$21, "-") -> 0.02166134144
A12: IBA | I12: =IF((E12+G12)>0,(E12+G12)/'Operational Data'!$G$21, "-") -> -
I13: =IF((E13+G13)>0,(E13+G13)/'Operational Data'!$G$21, "-") -> -
I14: =IF((E14+G14)>0,(E14+G14)/'Operational Data'!$G$21, "-") -> -
A15: Total Hazardous Waste | E15: =SUM(E11:F14) -> 4063.62 | G15: =SUM(G11:H14) -> 0 | I15: =IF((E15+G15)>0,(E15+G15)/'Operational Data'!$G$21, "-") -> 0.02166134144
A17: 2) Non-Hazardous Wastes
A18: IBA | C18: Derbyshire, Peterborough, Exeter | G18: 26404.92 | I18: =IF((E18+G18)>0,(E18+G18)/'Operational Data'!$G$21, "-") -> 0.1407528233
A19: Ferrous Metal | C19: Doncaster, Exeter, Cheltenham | G19: 1565.26 | I19: =IF((E19+G19)>0,(E19+G19)/'Operational Data'!$G$21, "-") -> 0.008343701259
A20: Process Water | C20: Gloucester | E20: 5878.7 | I20: =IF((E20+G20)>0,(E20+G20)/'Operational Data'!$G$21, "-") -> 0.03133672143
A21: Non-ferrous | C21: Wolverhampton | G21: 588.74 | I21: =IF((E21+G21)>0,(E21+G21)/'Operational Data'!$G$21, "-") -> 0.003138309724
A22: IBAA | C22: Bristol, Exeter, Blaenau Gwent | G22: 10697.46 | I22: =IF((E22+G22)>0,(E22+G22)/'Operational Data'!$G$21, "-") -> 0.05702337661
A23: Total Non-Hazardous Waste | E23: =SUM(E18:F22) -> 5878.7 | G23: =SUM(G18:H22) -> 39256.38 | I23: =IF((E23+G23)>0,(E23+G23)/'Operational Data'!$G$21, "-") -> 0.2405949323
A24: TOTAL WASTE | E24: =+E23+E15 -> 9942.32 | G24: =+G23+G15 -> 39256.38 | I24: =IF((E24+G24)>0,(E24+G24)/'Operational Data'!$G$21, "-") -> 0.2622562738
A26: Operator’s comments :
A31: =+A1 -> 2023 | B31: Annual Reporting of Water and Other Raw Material Usage
A32: Raw Material | E32: Usage | G32: Unit | H32: Specific Useage | J32: Unit
A33: Mains Water | E33: =+'Operational Data'!G42 -> 24216.77 | G33: m3 | H33: =IF(E33>0,E33/'Operational Data'!$G$21,"-") -> 0.129088774 | J33: m3/te
A34: Total Water | E34: =+'Operational Data'!G43+'Operational Data'!G42 -> 24216.77 | G34: m3 | H34: =IF(E34>0,E34/'Operational Data'!$G$21,"-") -> 0.129088774 | J34: m3/te
A35: Urea / Ammonia | E35: =+'Operational Data'!G44 -> 187230 | G35: kg | H35: =IF(E35>0,E35/'Operational Data'!$G$21,"-") -> 0.9980394226 | J35: kg/te
A36: Activated Carbon | E36: =+'Operational Data'!G46 -> 45170 | G36: kg | H36: =IF(E36>0,E36/'Operational Data'!$G$21,"-") -> 0.2407810753 | J36: kg/te
A37: Lime / hydrated lime / Sodium Bicarb. | E37: =+'Operational Data'!G47 -> 2023470 | G37: kg | H37: =IF(E37>0,E37/'Operational Data'!$G$21,"-") -> 10.78621391 | J37: kg/te
A39: Operator’s comments :
A43: =+A31 -> 2023 | B43: Annual Reporting of other performance indicators
A44: Parameter | C44: Results by Line
C45: A1 | D45: A2 | E45: A3 | F45: A4 | G45: A5 | I45: Turbine 1 | J45: Turbine 2
A46: Operating hours for the year, hours | C46: 8002
A47: Number of periods of abnormal operation, qty. | C47: 2
A48: Cumulative hours of abnormal operation for this year, hours | C48: 3.16
A50: Operator’s comments :
A54: Signed: | G54: Date:

Sheet Energy Form 1
A1: =+'Cover Page'!C39 -> 2023 | B1: Annual Reporting of Energy Usage/Export
A3: =+'Cover Page'!B31 -> Permit EPR/CP3535CK | F3: Operator: | G3: =+'Cover Page'!B37:I37 -> 0
A5: Facility: | B5: =+'Cover Page'!B33:I33 -> Javelin Park Energy Recovery Facility | F5: Form: | G5: Energy 1
A7: Reporting Period from: | D7: =+'Perf. Form 1'!D6:E6 -> 2023-01-01 | F7: to: | G7: =+'Perf. Form 1'!G6:H6 -> 2023-12-31
A9: Energy Source | D9: Energy Usage | F9: Unit | G9: Specific Useage (KWh/tonne incinerated
A10: Electricity Produced | D10: =+'Operational Data'!G24 -> 140322.641 | F10: MWh | G10: =+'Operational Data'!H24 -> 747.9972633
A11: Electricity Imported | D11: =+'Operational Data'!G27 -> 809.8 | F11: MWh | G11: =+'Operational Data'!H27 -> 4.316681752
A12: Electricity Exported | D12: =+'Operational Data'!G25 -> 125198.8 | F12: MWh | G12: =+'Operational Data'!H25 -> 667.3788285
A13: Gas Oil | D13: 158.14 | F13: tonnes
A14: Steam/hot water exported | D14: =+'Operational Data'!G30 -> 0 | F14: GWh | G14: =+'Operational Data'!H30 -> -
A18: Operator’s comments :
A29: Signed: | G29: Date:

Sheet Permit Compliance
A1: =+'Cover Page'!$B$29 -> Annual Performance Report 2023 | E1: =+'Cover Page'!$B$33 -> Javelin Park Energy Recovery Facility
A3: Summary of Permit Compliance
A5: Compliance with permit limits for continuously monitored pollutants
A7: The plant met its emission limits as shown in the table below:
A8: Substance | C8: Percentage time compliant during operationNote 1 | L8: Notes:
C9: Half-hourly limit | F9: Daily limit | L9: Note 1: Please report to 2 decimal places, i.e. xx.xx% Note 2: Please provide a brief summary of each notification or non-compliance in the table (rather than just referring to notifications that were sent to the Regulator), including stating the value of measured result for any ELV exceedances.
A10: Particulates | C10: 1 | F10: 1
A11: Oxides of nitrogen | C11: 1 | F11: 1
A12: Sulphur dioxide | C12: 1 | F12: 1
A13: Carbon monoxide | C13: 0.9999 | F13: 1
A14: Total organic carbon | C14: 1 | F14: 1
A15: Hydrogen chloride | C15: 1 | F15: 1
A16: Hydrogen fluoride | C16: 1 | F16: 1
A17: Ammonia | C17: N/A | F17: 1
A19: Summary of any notifications or non-compliances under the permit
A20: Date | B20: Summary of notification or non-compliance [including Line/Reference]Note 2 | E20: Reason | H20: Measures taken to prevent reoccurrence
A21: 2023-01-06 | B21: CO half-hour limit breach. Reading of 106.13mg/m3 | E21: Pressure excursion on the grate causing decrease in oxygen and a instantaneous spike in CO | H21: Secondary air added to compensate for loss of oxygen, readings brought back down within minutes
A27: Summary of any complaints received and actions to taken to resolve them.
A28: Date | B28: Summary of complaint [including Line/Reference] | E28: Reason * | H28: Measures taken to prevent reoccurrence
A29: 2023-09-23 | B29: Nearby resident reported an odorous smell at their property. | E29: During annual maintenance shutdown of the facility where waste levels increase. | H29: Odour suppression was already in place, and the doors were kept shut when not in use.
E34: * including whether substantiated by the operator or the EA

Sheet Improvements
A1: =+'Cover Page'!$B$29 -> Annual Performance Report 2023 | E1: =+'Cover Page'!$B$33 -> Javelin Park Energy Recovery Facility
A3: Summary of Plant Improvements
A5: Summary of any efficiency improvements that have been completed within the year.
A16: Summary of any permit improvement conditions that have been completed within the year and the resulting environmental benefits.
A17: The facility has followed the mercury and dioxin monitoring protocol and proved it has low and stable emissions and therefore CEMS is not required for these gases.
A27: Summary of any changes to the plant or operating techniques which required a variation to the permit and a summary of the resulting environmental impact.
A28: The facility undertook a permit variation to now report CO with the 95%ile 10-minute average rather than the half-hour average
A38: Summary of any other improvements made to the plant or planned to be made and a summary of the resulting environmental benefits.

Sheet Public Liasion
A1: =+'Cover Page'!$B$29 -> Annual Performance Report 2023 | E1: =+'Cover Page'!$B$33 -> Javelin Park Energy Recovery Facility
A3: Details of Public & Stakeholder Liasion
A5: Summary of events held during the reporting year.
A6: Date | C6: Description
A7: 2023-02-22 | C7: Paper making workshop
A9: 2023-03-18 | C9: Open Day
A11: 2023-08-31 | C11: Poppy Seedbomb workshop
A13: 2023-09-19 | C13: CLG meeting onsite
A15: 2023-09-19 | C15: Open Day
A18: List of events planned for next year
A19: Date | C19: Description
A20: 2024-02-16 | C20: Poppy Seedbomb workshop
A22: 16/03/2024 (provisional) | C22: Open Day
A24: 2024-04-05 | C24: Bottle Rocket workshop
A26: 19/10/2024 (provisional) | C26: Open Day
A28: 2024-11-01 | C28: Paper making workshop
A30: TBC | C30: CLG meeting
A33: If you wish to be involved in the public liasion programme, please contact info@ubbgloucestershire.co.uk

Sheet CO2 N2O
A1: =+'Cover Page'!$B$29 -> Annual Performance Report 2023 | C1: =+'Cover Page'!$B$33 -> Javelin Park Energy Recovery Facility
A3: Carbon dioxide emissions and biogenic content of waste inputs | F3: Notes:
A5: Carbon dioxide emissions (all types of plant)
B6: Annual mass of carbon dioxide released | C6: tonnes | D6: 153214.28
B7: Annual mass of carbon dioxide released per tonne of waste burned | C7: t CO2 / t waste | D7: 0.82
B8: Annual mass of carbon dioxide released per MWh of energy exported | C8: t CO2 / MWh export | D8: 1.22
B9: Description of how annual carbon dioxide mass emission has been calculated. See Note 1 | C9: Using CEMS software to calculate based on data throughout the year | F9: Note 1: Where available, data from CO2 CEMS should be used. Otherwise, only where no CEMS data is available, a suitable emissions factor should be used based on the tonnage of waste burned e.g.0.942 tCO2/t waste as per Tolvik report 2022, or other justified emissions factor - refer to embedded Environment Agency guidance note above or updated version for suitable descriptive text.
A10: Nitrous oxide emissions (only plants which use ammonia or urea to abate NOx emissions)
B11: Annual mass emissions of nitrous oxide | C11: tonnes N2O | D11: 0.27
B12: Description of how annual nitrous oxide mass emission has been calculated See Note 2 | C12: Calculated from measurements | F12: Note 2: Where available, data from N2O CEMS should be used. If no CEMS data is available, from periodic monitoring. Otherwise, a suitable emissions factor should be used based on the tonnage of waste burned e.g. 0.0981 kgN20/t waste as per 2021 Pollution Inventory data for plants with urea-based SNCR - refer to embedded Environment Agency guidance note above or updated version for suitable descriptive text.
A13: Total annual carbon dioxide and nitrous oxide emissions. See Note 3. | C13: tonnes CO2e | D13: 153294.46 | F13: Note 3: Total annual carbon dioxide and nitrous oxide emissions reported as carbon dioxide equivalent where 1 tonne nitrous oxide is equivalent to 298 tonne carbon dioxide
A14: Biogenic CO2 emissions (See Note 4) | F14: Note 4: Only plants combusting residual municipal waste, refuse derived fuel or solid recovered fuel
B15: Percentage of total carbon dioxide emissions arising from biogenic waste | C15: % | D15: 0.4971
B16: No. of measurements undertaken | C16: Number
B17: Description of how percentage biogenic carbon dioxide emissions have been measured or calculated. See Note 5 | C17: See below | F17: Note 5: Examples include direct measurement via C14 method or BIOMA software - refer to embedded Environment Agency guidance note above or updated version for suitable descriptive text, quoting standards where relevant. Otherwise, as an approximation (and in lieu of any more accurate metrics which may be developed in future), the measured or estimated biogenic fraction by net calorific value can be assumed to be the same as the biogenic CO2 fraction of the total CO2 emissions from the plant.
A18: Biogenic fraction of waste feedstock (See Note 4)
B19: Yearly average biogenic percentage of the waste by net calorific value (NCV) | C19: % | D19: 0.4971
B20: If sampling undertaken, no. of samples used to ascertain average biogenic % above | C20: Number | D20: 10
B21: Description of how biogenic percentage (by NCV) has been calculated or estimated. See Note 6 | C21: Samples from 10 different vehicles on a day, covering the range of sources waste arrives from | F21: Note 6: Where available, data from waste sampling should be used; otherwise, an estimated figure with justification can be used, or a figure assumed on the basis of a national average e.g. 2017 WRAP data for residual waste of 51.8% biogenic energy content - refer to embedded Environment Agency guidance note above or updated version for suitable descriptive text, quoting standards where relevant.
B23: Comments:

Sheet Residue Quality
A1: =+'Cover Page'!$B$29 -> Annual Performance Report 2023 | E1: =+'Cover Page'!$B$33 -> Javelin Park Energy Recovery Facility
A3: Residue Quality Monitoring Requirements
A5: Summary of monitoring undertaken and compliance
A6: Twice monthly IBA core hazard assessment performed following the ESA Protocol for IBA sampling, with an additional yearly full 15 hazardous property assessment. Quarterly IBA and APCr compliance testing also performed.
A8: All samples remained non-hazardous and compliant, and the facility will continue this testing regime into the future.
A13: Commentary on any specific events
A14: Date & Event | C14: Description
A27: Residue Quality Monitoring Results
A28: Parameter (unit) | C28: Limit | D28: Normal Operation
D29: Bottom ash | F29: APC Residues
A30: Loss on Ignition (average %) | C30: <5% | D30: 1.19
A31: Total Organic Carbon (average %) | C31: <3% | D31: 0.57
A32: No. of Assessments Undertaken | C32: --- | D32: 24 | F32: 4
A33: No. of Hazardous Results | C33: --- | D33: 0
A35: Comments :
A36: All IBA monitoring results were below the limits for LOI and TOC as stipulated in the permit, and no hazardous results were identified during the twice monthly samples

Sheet Water
A1: =+'Cover Page'!$B$29 -> Annual Performance Report 2023 | E1: =+'Cover Page'!$B$33 -> Javelin Park Energy Recovery Facility
A3: Emissions to Water
A5: Summary of monitoring undertaken and compliance
A13: Commentary on any specific events
A14: Date & Event | C14: Description
A22: Emissions to Water / Sewer
A23: Parameter | D23: Monitoring Frequency | F23: Limit | G23: Target | H23: Max. | I23: Average

Sheet Air (periodic)
A1: =+'Cover Page'!$B$29 -> Annual Performance Report 2023 | E1: =+'Cover Page'!$B$33 -> Javelin Park Energy Recovery Facility
A3: Emissions to Air (periodically monitored)
A5: Summary of monitoring undertaken, standards used and compliance | K5: Notes:
A6: Bi-annual periodic monitoring carried out as stipulated within the permit. All measurements found to be within the respective ELVs | K6: Template may require adjustment for any bespoke monitoring requirements of permit - please also check that all default ELV values, reference periods and the stated oxygen reference value match those for your plant, and edit if necessary!
A9: Results of emissions to air that are periodically monitored - oxygen reference 6%
A10: Substance | C10: Ref. Period | D10: Emission Limit Value* | F10: Average | K10: User to add additional tables as necessary, depending on whether quarterly or bi-annual reporting is required for the compliance year
F11: A1 | G11: A2 | H11: A3 | I11: A4 | J11: A5
A12: Hydrogen fluoride | C12: 1 hr | D12: 2 mg/m3 | F12: 0.19
A13: Cd and Th and their compounds | C13: 0.5-8hrs | D13: 0.05 mg/m3 | F13: 0.0007
A14: Hg and its compounds | C14: 0.5-8hrs | D14: 0.05 mg/m3 | F14: 0.001 | K14: * Denotes limits that were in force until 2 December 2023; from 3 December 2023 the following new limits applied (those not listed remained unchanged):
A15: Sb, As, Pb, Cr, Co, Cu, Mn, Ni, V and their compounds | C15: 0.5-8hrs | D15: 0.5 mg/m3 | F15: 0.026
A16: Dioxins & Furans (I-TEQ) | C16: 6-8hrs | D16: 0.1 ng/m3 | F16: 0.0054 | K16: Substance | L16: Reference Period | M16: Emission Limit Value
A17: PCBs (WHO-TEQ Humans / Mammals) | C17: 6-8hrs | D17: None set ng/m3 | F17: 0.0005
A18: PCBs (WHO-TEQ Fish) | C18: 6-8hrs | D18: None set ng/m3 | F18: 0 | K18: Hydrogen fluoride | L18: Average of three consecutive measurements of at least 30 minutes each | M18: 1 mg/m3
A19: PCBs (WHO-TEQ Birds) | C19: 6-8hrs | D19: None set ng/m3 | F19: 0.0016 | K19: Cd and Th and their compounds | L19: Average of three consecutive measurements of at least 30 minutes each | M19: 0.02 mg/m3
A20: Dioxins & Furans (WHO-TEQ Humans / Mammals) | C20: 6-8hrs | D20: None set ng/m3 | F20: 0.0052 | K20: Hg and its compounds | L20: Average of three consecutive measurements of at least 30 minutes each | M20: 0.02 mg/m3
A21: Dioxins & Furans (WHO-TEQ Fish) | C21: 6-8hrs | D21: None set ng/m3 | F21: 0.0053 | K21: Sb, As, Pb, Cr, Co, Cu, Mn, Ni, V and their compounds | L21: Average of three consecutive measurements of at least 30 minutes each | M21: 0.3 mg/m3
A22: Dioxins & Furans (WHO-TEQ Birds) | C22: 6-8hrs | D22: None set ng/m3 | F22: 0.0075 | K22: Dioxins & Furans (I-TEQ) | L22: 6-8hrs | M22: 0.06 ng/m3
A23: Anthanthrene | C23: 6-8hrs | D23: None set µg/m3 | F23: <0.001
A24: Benzo(a)anthracene | C24: 6-8hrs | D24: None set µg/m3 | F24: 0
A25: Benzo(a)pyrene | C25: 6-8hrs | D25: None set µg/m3 | F25: <0.001
A26: Benzo(b)fluoranthene | C26: 6-8hrs | D26: None set µg/m3 | F26: <0.0005
A27: Benzo(b)naptho(2,1-d) thiophene | C27: 6-8hrs | D27: None set µg/m3 | F27: <0.0007
A28: Benzo(c)phenanthrene | C28: 6-8hrs | D28: None set µg/m3 | F28: <0.0008
A29: Benzo(ghi)perylene | C29: 6-8hrs | D29: None set µg/m3 | F29: <0.001
A30: Benzo(k)fluoranthene | C30: 6-8hrs | D30: None set µg/m3 | F30: <0.0008
A31: Cholanthrene | C31: 6-8hrs | D31: None set µg/m3 | F31: <0.001
A32: Chrysene | C32: 6-8hrs | D32: None set µg/m3 | F32: 0.0032
A33: Cyclopenta(cd)pyrene | C33: 6-8hrs | D33: None set µg/m3 | F33: <0.001
A34: Dibenzo(ai)pyrene | C34: 6-8hrs | D34: None set µg/m3 | F34: <0.001
A35: Dibenzo(ah)anthracene | C35: 6-8hrs | D35: None set µg/m3 | F35: <0.001
A36: Fluoranthene | C36: 6-8hrs | D36: None set µg/m3 | F36: 0.033
A37: Indeno(123-cd) pyrene | C37: 6-8hrs | D37: None set µg/m3 | F37: <0.001
A38: Naphthalene | C38: 6-8hrs | D38: None set µg/m3 | F38: 2.51
A39: Comments :

Sheet Air (CEMS)
A1: =+'Cover Page'!$B$29 -> Annual Performance Report 2023 | I1: =+'Cover Page'!$B$33 -> Javelin Park Energy Recovery Facility
A3: Emissions to Air (continously monitored)
N4: Notes:
A5: Summary of monitoring undertaken, standards used and compliance | N5: Template may require adjustment for any bespoke monitoring requirements of permit
A6: CEMS measured the below substances throughout the year. There was only one half-hour breach of CO before the facility moved to 95%ile 10-minute reporting | N6: Please check that all default ELV values match those for your plant and edit if necessary!
N7: Report to 1 decimal place
A11: Results of emissions to air that are continuously monitored (maximum and average values for each line) - oxygen reference 11%
A12: Substance | B12: Reference Period | C12: Emission Limit Value** | D12: A1 | F12: A2 | H12: A3 | J12: A4 | L12: A5
D13: Max. | E13: Avg. | F13: Max. | G13: Avg. | H13: Max. | I13: Avg. | J13: Max. | K13: Avg. | L13: Max. | M13: Avg. | N13: ** Denotes limits that were in force until 2 December 2023; from 3 December 2023 the following new limits applied (those not listed remained unchanged):
A14: Oxides of nitrogen | B14: Daily mean | C14: 200 mg/m3 | D14: 197 | E14: 174.79
B15: ½ hourly mean | C15: 400 mg/m3 | D15: 308 | E15: 174.33 | N15: Substance | O15: Reference Period | P15: Emission Limit Value
A16: Particulates | B16: Daily mean | C16: 10 mg/m3 | D16: 1 | E16: 0.26
B17: ½ hourly mean | C17: 30 mg/m3 | D17: 1 | E17: 0.26 | N17: Oxides of nitrogen | O17: Daily mean | P17: 180 mg/m3
A18: Total Organic Carbon | B18: Daily mean | C18: 10 mg/m3 | D18: 1 | E18: 0.04 | N18: Particulates | O18: Daily mean | P18: 5 mg/m3
B19: ½ hourly mean | C19: 20 mg/m3 | D19: 4 | E19: 0.04 | N19: Hydrogen chloride | O19: Daily mean | P19: 8 mg/m3
A20: Hydrogen chloride | B20: Daily mean | C20: 10 mg/m3 | D20: 9.5 | E20: 7.22 | N20: Sulphur dioxide | O20: Daily mean | P20: 40 mg/m3
B21: ½ hourly mean | C21: 60 mg/m3 | D21: 24 | E21: 7.08 | N21: Ammonia | O21: Daily mean | P21: 15 mg/m3
A22: Sulphur dioxide | B22: Daily mean | C22: 50 mg/m3 | D22: 34 | E22: 16.21
B23: ½ hourly mean | C23: 200 mg/m3 | D23: 137 | E23: 16.25
A24: Carbon monoxide | B24: Daily mean | C24: 50 mg/m3 | D24: 12 | E24: 1.64
B26: 95%ile 10-min avg * | C26: 150 mg/m3 * | D26: 12.3 | E26: 1.58
A27: Ammonia | B27: Daily mean | C27: No limit set until 03/12/23 | D27: 2 | E27: 0.11
A28: ** = delete as appropriate, depending on whether your plant has half-horly or 10-min CO ELVs
A29: Comments :

Sheet HCl
A1: =+'Cover Page'!$B$29 -> Annual Performance Report 2023 | E1: =+'Cover Page'!$B$33 -> Javelin Park Energy Recovery Facility
A3: Monitoring of Hydrogen Chloride emissions | D3: Whole Installation | G3: See Notes in Cell Q3 | J3: =+A3 -> Monitoring of Hydrogen Chloride emissions | N3: Per Combustion Line | Q3: Notes:
Q4: User to add logic to complete Whole installation, Table A5:G18. From the data in Per Combustion Line, Table J6:O79, subject to No. of lines installed
A5: mg/Nm3 | B5: 1/2 Hourly Reference Periods | E5: Daily Reference Periods
A6: =+'Cover Page'!C39 -> 2023 | B6: 1/2 hourly HCl ELV | C6: Monthly 1/2 hourly mean | D6: Highest 1/2 hourly maximum | E6: Daily HCl ELV* | F6: Monthly daily mean | G6: Highest daily maximum | J6: =+A6 -> 2023 | K6: mg/Nm3 | L6: Monthly 1/2 hourly mean | M6: Monthly 1/2 hourly maximum | N6: Monthly daily mean | O6: Monthly daily maximum
A7: Jan | B7: 60 | C7: 6 | D7: 17 | E7: 10 | F7: 5.93 | G7: 8 | J7: A1 | K7: Jan | L7: 6 | M7: 17 | N7: 5.93 | O7: 8
A8: Feb | B8: 60 | C8: 6 | D8: 15 | E8: 10 | F8: 5.9 | G8: 8 | K8: Feb | L8: 6 | M8: 15 | N8: 5.9 | O8: 8
A9: Mar | B9: 60 | C9: 6 | D9: 15 | E9: 10 | F9: 6.34 | G9: 8 | K9: Mar | L9: 6 | M9: 15 | N9: 6.34 | O9: 8 | Q9: Whole Installation table A5:G18:
A10: Apr | B10: 60 | C10: 7 | D10: 20 | E10: 10 | F10: 7.34 | G10: 9 | K10: Apr | L10: 7 | M10: 20 | N10: 7.34 | O10: 9 | Q10: Mean: for 1/2 hourly and daily periods calculate mean of values across all operational combustion lines for the month
A11: May | B11: 60 | C11: 8 | D11: 19 | E11: 10 | F11: 8.1 | G11: 9 | K11: May | L11: 8 | M11: 19 | N11: 8.1 | O11: 9
A12: Jun | B12: 60 | C12: 8 | D12: 13 | E12: 10 | F12: 7.99 | G12: 9 | K12: Jun | L12: 8 | M12: 13 | N12: 7.99 | O12: 9
A13: Jul | B13: 60 | C13: 8 | D13: 24 | E13: 10 | F13: 8.26 | G13: 9 | K13: Jul | L13: 8 | M13: 24 | N13: 8.26 | O13: 9 | Q13: Maximum: for 1/2 hourly and daily periods use the highest value across all operational combustion lines for the month
A14: Aug | B14: 60 | C14: 8 | D14: 19 | E14: 10 | F14: 8.12 | G14: 9 | K14: Aug | L14: 8 | M14: 19 | N14: 8.12 | O14: 9
A15: Sep | B15: 60 | C15: 6 | D15: 17 | E15: 10 | F15: 6.585714286 | G15: 9 | K15: Sep | L15: 6 | M15: 17 | N15: 6.585714286 | O15: 9
A16: Oct | B16: 60 | C16: 8 | D16: 18 | E16: 10 | F16: 8.249677419 | G16: 9 | K16: Oct | L16: 8 | M16: 18 | N16: 8.249677419 | O16: 9
A17: Nov | B17: 60 | C17: 8 | D17: 16 | E17: 10 | F17: 7.568666667 | G17: 9.5 | K17: Nov | L17: 8 | M17: 16 | N17: 7.568666667 | O17: 9.5
A18: Dec | B18: 60 | C18: 6 | D18: 15 | E18: 10 | F18: 6.315483871 | G18: 7 | K18: Dec | L18: 6 | M18: 15 | N18: 6.315483871 | O18: 7
E19: * ELV reduced to 8 mg/Nm3 on 3 December 2023 | K19: Annual | L19: =AVERAGE(L7:L18) -> 7.083333333 | M19: =MAX(M7:M18) -> 24 | N19: =AVERAGE(N7:N18) -> 7.224961854 | O19: =MAX(O7:O18) -> 9.5
J21: =+A6 -> 2023 | K21: mg/Nm3 | L21: Monthly 1/2 hourly mean | M21: Monthly 1/2 hourly maximum | N21: Monthly daily mean | O21: Monthly daily maximum
J22: A2 | K22: Jan
K23: Feb
K24: Mar
K25: Apr
K26: May
K27: Jun
K28: Jul
K29: Aug
K30: Sep
K31: Oct
K32: Nov
K33: Dec
K34: Annual | L34: =AVERAGE(L22:L33) ->  | M34: =MAX(M22:M33) -> 0 | N34: =AVERAGE(N22:N33) ->  | O34: =MAX(O22:O33) -> 0
J36: =+A6 -> 2023 | K36: mg/Nm3 | L36: Monthly 1/2 hourly mean | M36: Monthly 1/2 hourly maximum | N36: Monthly daily mean | O36: Monthly daily maximum
J37: A3 | K37: Jan
K38: Feb
K39: Mar
K40: Apr
K41: May
K42: Jun
K43: Jul
K44: Aug
K45: Sep
K46: Oct
K47: Nov
A48: Comments : | K48: Dec
K49: Annual | L49: =AVERAGE(L37:L48) ->  | M49: =MAX(M37:M48) -> 0 | N49: =AVERAGE(N37:N48) ->  | O49: =MAX(O37:O48) -> 0
J51: =+A6 -> 2023 | K51: mg/Nm3 | L51: Monthly 1/2 hourly mean | M51: Monthly 1/2 hourly maximum | N51: Monthly daily mean | O51: Monthly daily maximum
J52: A4 | K52: Jan
K53: Feb
K54: Mar
K55: Apr
K56: May
K57: Jun
K58: Jul
K59: Aug
K60: Sep
K61: Oct
K62: Nov
K63: Dec
K64: Annual | L64: =AVERAGE(L52:L63) ->  | M64: =MAX(M52:M63) -> 0 | N64: =AVERAGE(N52:N63) ->  | O64: =MAX(O52:O63) -> 0
J66: =+A6 -> 2023 | K66: mg/Nm3 | L66: Monthly 1/2 hourly mean | M66: Monthly 1/2 hourly maximum | N66: Monthly daily mean | O66: Monthly daily maximum
J67: A5 | K67: Jan
K68: Feb
K69: Mar
K70: Apr
K71: May
K72: Jun
K73: Jul
K74: Aug
K75: Sep
K76: Oct
K77: Nov
K78: Dec
K79: Annual | L79: =AVERAGE(L67:L78) ->  | M79: =MAX(M67:M78) -> 0 | N79: =AVERAGE(N67:N78) ->  | O79: =MAX(O67:O78) -> 0

Sheet SO2
A1: =+'Cover Page'!$B$29 -> Annual Performance Report 2023 | E1: =+'Cover Page'!$B$33 -> Javelin Park Energy Recovery Facility
A3: Monitoring of Sulphur dioxide emissions | D3: Whole Installation | G3: See Notes in Cell Q3 | J3: =+A3 -> Monitoring of Sulphur dioxide emissions | N3: Per Combustion Line | Q3: Notes:
Q4: User to add logic to complete Whole installation, Table A5:G18. From the data in Per Combustion Line, Table J6:O79, subject to No. of lines installed
A5: mg/Nm3 | B5: 1/2 Hourly Reference Periods | E5: Daily Reference Periods
A6: =+'Cover Page'!C39 -> 2023 | B6: 1/2 hourly SO2 ELV | C6: Monthly 1/2 hourly mean | D6: Highest 1/2 hourly maximum | E6: Daily SO2 ELV* | F6: Monthly daily mean | G6: Highest daily maximum | J6: =+A6 -> 2023 | K6: mg/Nm3 | L6: Monthly 1/2 hourly mean | M6: Monthly 1/2 hourly maximum | N6: Monthly daily mean | O6: Monthly daily maximum
A7: Jan | B7: 200 | C7: 18 | D7: 73 | E7: 50 | F7: 17.82 | G7: 24 | J7: A1 | K7: Jan | L7: 18 | M7: 73 | N7: 17.82 | O7: 24
A8: Feb | B8: 200 | C8: 20 | D8: 137 | E8: 50 | F8: 19.52 | G8: 34 | K8: Feb | L8: 20 | M8: 137 | N8: 19.52 | O8: 34
A9: Mar | B9: 200 | C9: 18 | D9: 60 | E9: 50 | F9: 18.22 | G9: 24 | K9: Mar | L9: 18 | M9: 60 | N9: 18.22 | O9: 24 | Q9: Whole Installation table A5:G18:
A10: Apr | B10: 200 | C10: 15 | D10: 81 | E10: 50 | F10: 15.19 | G10: 22 | K10: Apr | L10: 15 | M10: 81 | N10: 15.19 | O10: 22 | Q10: Mean: for 1/2 hourly and daily periods calculate mean of values across all operational combustion lines for the month
A11: May | B11: 200 | C11: 14 | D11: 55 | E11: 50 | F11: 14.21 | G11: 20 | K11: May | L11: 14 | M11: 55 | N11: 14.21 | O11: 20
A12: Jun | B12: 200 | C12: 15 | D12: 41 | E12: 50 | F12: 15.09 | G12: 22 | K12: Jun | L12: 15 | M12: 41 | N12: 15.09 | O12: 22
A13: Jul | B13: 200 | C13: 16 | D13: 68 | E13: 50 | F13: 16.35 | G13: 20 | K13: Jul | L13: 16 | M13: 68 | N13: 16.35 | O13: 20 | Q13: Maximum: for 1/2 hourly and daily periods use the highest value across all operational combustion lines for the month
A14: Aug | B14: 200 | C14: 16 | D14: 55 | E14: 50 | F14: 15.94 | G14: 23 | K14: Aug | L14: 16 | M14: 55 | N14: 15.94 | O14: 23
A15: Sep | B15: 200 | C15: 21 | D15: 61 | E15: 50 | F15: 20.32285714 | G15: 33 | K15: Sep | L15: 21 | M15: 61 | N15: 20.32285714 | O15: 33
A16: Oct | B16: 200 | C16: 14 | D16: 47 | E16: 50 | F16: 14.05096774 | G16: 23 | K16: Oct | L16: 14 | M16: 47 | N16: 14.05096774 | O16: 23
A17: Nov | B17: 200 | C17: 12 | D17: 56 | E17: 50 | F17: 12.33733333 | G17: 18 | K17: Nov | L17: 12 | M17: 56 | N17: 12.33733333 | O17: 18
A18: Dec | B18: 200 | C18: 16 | D18: 42 | E18: 50 | F18: 15.5216129 | G18: 19 | K18: Dec | L18: 16 | M18: 42 | N18: 15.5216129 | O18: 19
E19: * ELV reduced to 40 mg/Nm3 on 3 December 2023 | K19: Annual | L19: =AVERAGE(L7:L18) -> 16.25 | M19: =MAX(M7:M18) -> 137 | N19: =AVERAGE(N7:N18) -> 16.21439759 | O19: =MAX(O7:O18) -> 34
J21: =+A6 -> 2023 | K21: mg/Nm3 | L21: Monthly 1/2 hourly mean | M21: Monthly 1/2 hourly maximum | N21: Monthly daily mean | O21: Monthly daily maximum
J22: A2 | K22: Jan
K23: Feb
K24: Mar
K25: Apr
K26: May
K27: Jun
K28: Jul
K29: Aug
K30: Sep
K31: Oct
K32: Nov
K33: Dec
K34: Annual | L34: =AVERAGE(L22:L33) ->  | M34: =MAX(M22:M33) -> 0 | N34: =AVERAGE(N22:N33) ->  | O34: =MAX(O22:O33) -> 0
J36: =+A6 -> 2023 | K36: mg/Nm3 | L36: Monthly 1/2 hourly mean | M36: Monthly 1/2 hourly maximum | N36: Monthly daily mean | O36: Monthly daily maximum
J37: A3 | K37: Jan
K38: Feb
K39: Mar
K40: Apr
K41: May
K42: Jun
K43: Jul
K44: Aug
K45: Sep
K46: Oct
K47: Nov
A48: Comments : | K48: Dec
K49: Annual | L49: =AVERAGE(L37:L48) ->  | M49: =MAX(M37:M48) -> 0 | N49: =AVERAGE(N37:N48) ->  | O49: =MAX(O37:O48) -> 0
J51: =+A6 -> 2023 | K51: mg/Nm3 | L51: Monthly 1/2 hourly mean | M51: Monthly 1/2 hourly maximum | N51: Monthly daily mean | O51: Monthly daily maximum
J52: A4 | K52: Jan
K53: Feb
K54: Mar
K55: Apr
K56: May
K57: Jun
K58: Jul
K59: Aug
K60: Sep
K61: Oct
K62: Nov
K63: Dec
K64: Annual | L64: =AVERAGE(L52:L63) ->  | M64: =MAX(M52:M63) -> 0 | N64: =AVERAGE(N52:N63) ->  | O64: =MAX(O52:O63) -> 0
J66: =+A6 -> 2023 | K66: mg/Nm3 | L66: Monthly 1/2 hourly mean | M66: Monthly 1/2 hourly maximum | N66: Monthly daily mean | O66: Monthly daily maximum
J67: A5 | K67: Jan
K68: Feb
K69: Mar
K70: Apr
K71: May
K72: Jun
K73: Jul
K74: Aug
K75: Sep
K76: Oct
K77: Nov
K78: Dec
K79: Annual | L79: =AVERAGE(L67:L78) ->  | M79: =MAX(M67:M78) -> 0 | N79: =AVERAGE(N67:N78) ->  | O79: =MAX(O67:O78) -> 0

Sheet NOx
A1: =+'Cover Page'!$B$29 -> Annual Performance Report 2023 | E1: =+'Cover Page'!$B$33 -> Javelin Park Energy Recovery Facility
A3: Monitoring of Oxides of Nitrogen emissions | D3: Whole Installation | G3: See Notes in Cell Q3 | J3: =+A3 -> Monitoring of Oxides of Nitrogen emissions | N3: Per Combustion Line | Q3: Notes:
Q4: User to add logic to complete Whole installation, Table A5:G18. From the data in Per Combustion Line, Table J6:O79, subject to No. of lines installed
A5: mg/Nm3 | B5: 1/2 Hourly Reference Periods | E5: Daily Reference Periods
A6: =+'Cover Page'!C39 -> 2023 | B6: 1/2 hourly NOx ELV | C6: Monthly 1/2 hourly mean | D6: Highest 1/2 hourly maximum | E6: Daily NOx ELV* | F6: Monthly daily mean | G6: Highest daily maximum | J6: =+A6 -> 2023 | K6: mg/Nm3 | L6: Monthly 1/2 hourly mean | M6: Monthly 1/2 hourly maximum | N6: Monthly daily mean | O6: Monthly daily maximum
A7: Jan | B7: 400 | C7: 187 | D7: 204 | E7: 200 | F7: 186.82 | G7: 193 | J7: A1 | K7: Jan | L7: 187 | M7: 204 | N7: 186.82 | O7: 193
A8: Feb | B8: 400 | C8: 176 | D8: 271 | E8: 200 | F8: 175.66 | G8: 188 | K8: Feb | L8: 176 | M8: 271 | N8: 175.66 | O8: 188
A9: Mar | B9: 400 | C9: 186 | D9: 308 | E9: 200 | F9: 187.34 | G9: 191 | K9: Mar | L9: 186 | M9: 308 | N9: 187.34 | O9: 191 | Q9: Whole Installation table A5:G18:
A10: Apr | B10: 400 | C10: 178 | D10: 202 | E10: 200 | F10: 178.38 | G10: 189 | K10: Apr | L10: 178 | M10: 202 | N10: 178.38 | O10: 189 | Q10: Mean: for 1/2 hourly and daily periods calculate mean of values across all operational combustion lines for the month
A11: May | B11: 400 | C11: 182 | D11: 212 | E11: 200 | F11: 183.36 | G11: 194 | K11: May | L11: 182 | M11: 212 | N11: 183.36 | O11: 194
A12: Jun | B12: 400 | C12: 168 | D12: 240 | E12: 200 | F12: 167.92 | G12: 186 | K12: Jun | L12: 168 | M12: 240 | N12: 167.92 | O12: 186
A13: Jul | B13: 400 | C13: 179 | D13: 215 | E13: 200 | F13: 178.78 | G13: 188 | K13: Jul | L13: 179 | M13: 215 | N13: 178.78 | O13: 188 | Q13: Maximum: for 1/2 hourly and daily periods use the highest value across all operational combustion lines for the month
A14: Aug | B14: 400 | C14: 167 | D14: 222 | E14: 200 | F14: 167.42 | G14: 188 | K14: Aug | L14: 167 | M14: 222 | N14: 167.42 | O14: 188
A15: Sep | B15: 400 | C15: 146 | D15: 235 | E15: 200 | F15: 147.9992857 | G15: 197 | K15: Sep | L15: 146 | M15: 235 | N15: 147.9992857 | O15: 197
A16: Oct | B16: 400 | C16: 182 | D16: 227 | E16: 200 | F16: 182.1609677 | G16: 192 | K16: Oct | L16: 182 | M16: 227 | N16: 182.1609677 | O16: 192
A17: Nov | B17: 400 | C17: 176 | D17: 200 | E17: 200 | F17: 176.3136667 | G17: 186 | K17: Nov | L17: 176 | M17: 200 | N17: 176.3136667 | O17: 186
A18: Dec | B18: 400 | C18: 165 | D18: 240 | E18: 200 | F18: 165.3654839 | G18: 174 | K18: Dec | L18: 165 | M18: 240 | N18: 165.3654839 | O18: 174
E19: * ELV reduced to 180 mg/Nm3 on 3 December 2023 | K19: Annual | L19: =AVERAGE(L7:L18) -> 174.3333333 | M19: =MAX(M7:M18) -> 308 | N19: =AVERAGE(N7:N18) -> 174.7932837 | O19: =MAX(O7:O18) -> 197
J21: =+A6 -> 2023 | K21: mg/Nm3 | L21: Monthly 1/2 hourly mean | M21: Monthly 1/2 hourly maximum | N21: Monthly daily mean | O21: Monthly daily maximum
J22: A2 | K22: Jan
K23: Feb
K24: Mar
K25: Apr
K26: May
K27: Jun
K28: Jul
K29: Aug
K30: Sep
K31: Oct
K32: Nov
K33: Dec
K34: Annual | L34: =AVERAGE(L22:L33) ->  | M34: =MAX(M22:M33) -> 0 | N34: =AVERAGE(N22:N33) ->  | O34: =MAX(O22:O33) -> 0
J36: =+A6 -> 2023 | K36: mg/Nm3 | L36: Monthly 1/2 hourly mean | M36: Monthly 1/2 hourly maximum | N36: Monthly daily mean | O36: Monthly daily maximum
J37: A3 | K37: Jan
K38: Feb
K39: Mar
K40: Apr
K41: May
K42: Jun
K43: Jul
K44: Aug
K45: Sep
K46: Oct
K47: Nov
A48: Comments : | K48: Dec
K49: Annual | L49: =AVERAGE(L37:L48) ->  | M49: =MAX(M37:M48) -> 0 | N49: =AVERAGE(N37:N48) ->  | O49: =MAX(O37:O48) -> 0
J51: =+A6 -> 2023 | K51: mg/Nm3 | L51: Monthly 1/2 hourly mean | M51: Monthly 1/2 hourly maximum | N51: Monthly daily mean | O51: Monthly daily maximum
J52: A4 | K52: Jan
K53: Feb
K54: Mar
K55: Apr
K56: May
K57: Jun
K58: Jul
K59: Aug
K60: Sep
K61: Oct
K62: Nov
K63: Dec
K64: Annual | L64: =AVERAGE(L52:L63) ->  | M64: =MAX(M52:M63) -> 0 | N64: =AVERAGE(N52:N63) ->  | O64: =MAX(O52:O63) -> 0
J66: =+A6 -> 2023 | K66: mg/Nm3 | L66: Monthly 1/2 hourly mean | M66: Monthly 1/2 hourly maximum | N66: Monthly daily mean | O66: Monthly daily maximum
J67: A5 | K67: Jan
K68: Feb
K69: Mar
K70: Apr
K71: May
K72: Jun
K73: Jul
K74: Aug
K75: Sep
K76: Oct
K77: Nov
K78: Dec
K79: Annual | L79: =AVERAGE(L67:L78) ->  | M79: =MAX(M67:M78) -> 0 | N79: =AVERAGE(N67:N78) ->  | O79: =MAX(O67:O78) -> 0

Sheet TOC
A1: =+'Cover Page'!$B$29 -> Annual Performance Report 2023 | E1: =+'Cover Page'!$B$33 -> Javelin Park Energy Recovery Facility
A3: Monitoring of Total organic carbon emissions | D3: Whole Installation | G3: See Notes in Cell Q3 | J3: =+A3 -> Monitoring of Total organic carbon emissions | N3: Per Combustion Line | Q3: Notes:
Q4: User to add logic to complete Whole installation, Table A5:G18. From the data in Per Combustion Line, Table J6:O79, subject to No. of lines installed
A5: mg/Nm3 | B5: 1/2 Hourly Reference Periods | E5: Daily Reference Periods
A6: =+'Cover Page'!C39 -> 2023 | B6: 1/2 hourly TOC ELV | C6: Monthly 1/2 hourly mean | D6: Highest 1/2 hourly maximum | E6: Daily TOC ELV | F6: Monthly daily mean | G6: Highest daily maximum | J6: =+A6 -> 2023 | K6: mg/Nm3 | L6: Monthly 1/2 hourly mean | M6: Monthly 1/2 hourly maximum | N6: Monthly daily mean | O6: Monthly daily maximum
A7: Jan | B7: 20 | C7: 0 | D7: 3 | E7: 10 | F7: -0.0045 | G7: 0 | J7: A1 | K7: Jan | L7: 0 | M7: 3 | N7: -0.0045 | O7: 0
A8: Feb | B8: 20 | C8: 0 | D8: 2 | E8: 10 | F8: 0.0032 | G8: 0 | K8: Feb | L8: 0 | M8: 2 | N8: 0.0032 | O8: 0
A9: Mar | B9: 20 | C9: 0 | D9: 3 | E9: 10 | F9: -0.025 | G9: 0 | K9: Mar | L9: 0 | M9: 3 | N9: -0.025 | O9: 0 | Q9: Whole Installation table A5:G18:
A10: Apr | B10: 20 | C10: 0 | D10: 2 | E10: 10 | F10: -0.015 | G10: 0 | K10: Apr | L10: 0 | M10: 2 | N10: -0.015 | O10: 0 | Q10: Mean: for 1/2 hourly and daily periods calculate mean of values across all operational combustion lines for the month
A11: May | B11: 20 | C11: 0 | D11: 2 | E11: 10 | F11: -0.035 | G11: 0 | K11: May | L11: 0 | M11: 2 | N11: -0.035 | O11: 0
A12: Jun | B12: 20 | C12: 0 | D12: 3 | E12: 10 | F12: -0.005 | G12: 0 | K12: Jun | L12: 0 | M12: 3 | N12: -0.005 | O12: 0
A13: Jul | B13: 20 | C13: 0 | D13: 3 | E13: 10 | F13: 0.066 | G13: 0 | K13: Jul | L13: 0 | M13: 3 | N13: 0.066 | O13: 0 | Q13: Maximum: for 1/2 hourly and daily periods use the highest value across all operational combustion lines for the month
A14: Aug | B14: 20 | C14: 0 | D14: 3 | E14: 10 | F14: 0.15 | G14: 0 | K14: Aug | L14: 0 | M14: 3 | N14: 0.15 | O14: 0
A15: Sep | B15: 20 | C15: 0 | D15: 4 | E15: 10 | F15: 0.2 | G15: 1 | K15: Sep | L15: 0 | M15: 4 | N15: 0.2 | O15: 1
A16: Oct | B16: 20 | C16: 0 | D16: 2 | E16: 10 | F16: 0.1025806452 | G16: 0 | K16: Oct | L16: 0 | M16: 2 | N16: 0.1025806452 | O16: 0
A17: Nov | B17: 20 | C17: 0 | D17: 3 | E17: 10 | F17: 0.002666666667 | G17: 0 | K17: Nov | L17: 0 | M17: 3 | N17: 0.002666666667 | O17: 0
A18: Dec | B18: 20 | C18: 0 | D18: 3 | E18: 10 | F18: -0.006129032258 | G18: 0 | K18: Dec | L18: 0 | M18: 3 | N18: -0.006129032258 | O18: 0
K19: Annual | L19: =AVERAGE(L7:L18) -> 0 | M19: =MAX(M7:M18) -> 4 | N19: =AVERAGE(N7:N18) -> 0.0361515233 | O19: =MAX(O7:O18) -> 1
J21: =+A6 -> 2023 | K21: mg/Nm3 | L21: Monthly 1/2 hourly mean | M21: Monthly 1/2 hourly maximum | N21: Monthly daily mean | O21: Monthly daily maximum
J22: A2 | K22: Jan
K23: Feb
K24: Mar
K25: Apr
K26: May
K27: Jun
K28: Jul
K29: Aug
K30: Sep
K31: Oct
K32: Nov
K33: Dec
K34: Annual | L34: =AVERAGE(L22:L33) ->  | M34: =MAX(M22:M33) -> 0 | N34: =AVERAGE(N22:N33) ->  | O34: =MAX(O22:O33) -> 0
J36: =+A6 -> 2023 | K36: mg/Nm3 | L36: Monthly 1/2 hourly mean | M36: Monthly 1/2 hourly maximum | N36: Monthly daily mean | O36: Monthly daily maximum
J37: A3 | K37: Jan
K38: Feb
K39: Mar
K40: Apr
K41: May
K42: Jun
K43: Jul
K44: Aug
K45: Sep
K46: Oct
K47: Nov
A48: Comments : | K48: Dec
K49: Annual | L49: =AVERAGE(L37:L48) ->  | M49: =MAX(M37:M48) -> 0 | N49: =AVERAGE(N37:N48) ->  | O49: =MAX(O37:O48) -> 0
J51: =+A6 -> 2023 | K51: mg/Nm3 | L51: Monthly 1/2 hourly mean | M51: Monthly 1/2 hourly maximum | N51: Monthly daily mean | O51: Monthly daily maximum
J52: A4 | K52: Jan
K53: Feb
K54: Mar
K55: Apr
K56: May
K57: Jun
K58: Jul
K59: Aug
K60: Sep
K61: Oct
K62: Nov
K63: Dec
K64: Annual | L64: =AVERAGE(L52:L63) ->  | M64: =MAX(M52:M63) -> 0 | N64: =AVERAGE(N52:N63) ->  | O64: =MAX(O52:O63) -> 0
J66: =+A6 -> 2023 | K66: mg/Nm3 | L66: Monthly 1/2 hourly mean | M66: Monthly 1/2 hourly maximum | N66: Monthly daily mean | O66: Monthly daily maximum
J67: A5 | K67: Jan
K68: Feb
K69: Mar
K70: Apr
K71: May
K72: Jun
K73: Jul
K74: Aug
K75: Sep
K76: Oct
K77: Nov
K78: Dec
K79: Annual | L79: =AVERAGE(L67:L78) ->  | M79: =MAX(M67:M78) -> 0 | N79: =AVERAGE(N67:N78) ->  | O79: =MAX(O67:O78) -> 0

Sheet Particulates
A1: =+'Cover Page'!$B$29 -> Annual Performance Report 2023 | E1: =+'Cover Page'!$B$33 -> Javelin Park Energy Recovery Facility
A3: Monitoring of Particulate matter emissions | D3: Whole Installation | G3: See Notes in Cell Q3 | J3: =+A3 -> Monitoring of Particulate matter emissions | N3: Per Combustion Line | Q3: Notes:
Q4: User to add logic to complete Whole installation, Table A5:G18. From the data in Per Combustion Line, Table J6:O79, subject to No. of lines installed
A5: mg/Nm3 | B5: 1/2 Hourly Reference Periods | E5: Daily Reference Periods
A6: =+'Cover Page'!C39 -> 2023 | B6: 1/2 hourly PM ELV | C6: Monthly 1/2 hourly mean | D6: Highest 1/2 hourly maximum | E6: Daily PM ELV* | F6: Monthly daily mean | G6: Highest daily maximum | J6: =+A6 -> 2023 | K6: mg/Nm3 | L6: Monthly 1/2 hourly mean | M6: Monthly 1/2 hourly maximum | N6: Monthly daily mean | O6: Monthly daily maximum
A7: Jan | B7: 30 | C7: 0 | D7: 1 | E7: 10 | F7: 0.3 | G7: 0 | J7: A1 | K7: Jan | L7: 0 | M7: 1 | N7: 0.3 | O7: 0
A8: Feb | B8: 30 | C8: 0 | D8: 1 | E8: 10 | F8: 0.31 | G8: 0 | K8: Feb | L8: 0 | M8: 1 | N8: 0.31 | O8: 0
A9: Mar | B9: 30 | C9: 0 | D9: 1 | E9: 10 | F9: 0.32 | G9: 0 | K9: Mar | L9: 0 | M9: 1 | N9: 0.32 | O9: 0 | Q9: Whole Installation table A5:G18:
A10: Apr | B10: 30 | C10: 0 | D10: 0 | E10: 10 | F10: 0.33 | G10: 0 | K10: Apr | L10: 0 | M10: 0 | N10: 0.33 | O10: 0 | Q10: Mean: for 1/2 hourly and daily periods calculate mean of values across all operational combustion lines for the month
A11: May | B11: 30 | C11: 0 | D11: 1 | E11: 10 | F11: 0.34 | G11: 0 | K11: May | L11: 0 | M11: 1 | N11: 0.34 | O11: 0
A12: Jun | B12: 30 | C12: 0 | D12: 1 | E12: 10 | F12: 0.3 | G12: 0 | K12: Jun | L12: 0 | M12: 1 | N12: 0.3 | O12: 0
A13: Jul | B13: 30 | C13: 0 | D13: 1 | E13: 10 | F13: 0.36 | G13: 0 | K13: Jul | L13: 0 | M13: 1 | N13: 0.36 | O13: 0 | Q13: Maximum: for 1/2 hourly and daily periods use the highest value across all operational combustion lines for the month
A14: Aug | B14: 30 | C14: 0 | D14: 0 | E14: 10 | F14: 0.29 | G14: 1 | K14: Aug | L14: 0 | M14: 0 | N14: 0.29 | O14: 1
A15: Sep | B15: 30 | C15: 0 | D15: 1 | E15: 10 | F15: 0.1578571429 | G15: 0 | K15: Sep | L15: 0 | M15: 1 | N15: 0.1578571429 | O15: 0
A16: Oct | B16: 30 | C16: 0 | D16: 0 | E16: 10 | F16: 0.12 | G16: 0 | K16: Oct | L16: 0 | M16: 0 | N16: 0.12 | O16: 0
A17: Nov | B17: 30 | C17: 0 | D17: 0 | E17: 10 | F17: 0.1143333333 | G17: 0 | K17: Nov | L17: 0 | M17: 0 | N17: 0.1143333333 | O17: 0
A18: Dec | B18: 30 | C18: 0 | D18: 0 | E18: 10 | F18: 0.1190322581 | G18: 0 | K18: Dec | L18: 0 | M18: 0 | N18: 0.1190322581 | O18: 0
E19: * ELV reduced to 5 mg/Nm3 on 3 December 2023 | K19: Annual | L19: =AVERAGE(L7:L18) -> 0 | M19: =MAX(M7:M18) -> 1 | N19: =AVERAGE(N7:N18) -> 0.2551018945 | O19: =MAX(O7:O18) -> 1
J21: =+A6 -> 2023 | K21: mg/Nm3 | L21: Monthly 1/2 hourly mean | M21: Monthly 1/2 hourly maximum | N21: Monthly daily mean | O21: Monthly daily maximum
J22: A2 | K22: Jan
K23: Feb
K24: Mar
K25: Apr
K26: May
K27: Jun
K28: Jul
K29: Aug
K30: Sep
K31: Oct
K32: Nov
K33: Dec
K34: Annual | L34: =AVERAGE(L22:L33) ->  | M34: =MAX(M22:M33) -> 0 | N34: =AVERAGE(N22:N33) ->  | O34: =MAX(O22:O33) -> 0
J36: =+A6 -> 2023 | K36: mg/Nm3 | L36: Monthly 1/2 hourly mean | M36: Monthly 1/2 hourly maximum | N36: Monthly daily mean | O36: Monthly daily maximum
J37: A3 | K37: Jan
K38: Feb
K39: Mar
K40: Apr
K41: May
K42: Jun
K43: Jul
K44: Aug
K45: Sep
K46: Oct
K47: Nov
A48: Comments : | K48: Dec
K49: Annual | L49: =AVERAGE(L37:L48) ->  | M49: =MAX(M37:M48) -> 0 | N49: =AVERAGE(N37:N48) ->  | O49: =MAX(O37:O48) -> 0
J51: =+A6 -> 2023 | K51: mg/Nm3 | L51: Monthly 1/2 hourly mean | M51: Monthly 1/2 hourly maximum | N51: Monthly daily mean | O51: Monthly daily maximum
J52: A4 | K52: Jan
K53: Feb
K54: Mar
K55: Apr
K56: May
K57: Jun
K58: Jul
K59: Aug
K60: Sep
K61: Oct
K62: Nov
K63: Dec
K64: Annual | L64: =AVERAGE(L52:L63) ->  | M64: =MAX(M52:M63) -> 0 | N64: =AVERAGE(N52:N63) ->  | O64: =MAX(O52:O63) -> 0
J66: =+A6 -> 2023 | K66: mg/Nm3 | L66: Monthly 1/2 hourly mean | M66: Monthly 1/2 hourly maximum | N66: Monthly daily mean | O66: Monthly daily maximum
J67: A5 | K67: Jan
K68: Feb
K69: Mar
K70: Apr
K71: May
K72: Jun
K73: Jul
K74: Aug
K75: Sep
K76: Oct
K77: Nov
K78: Dec
K79: Annual | L79: =AVERAGE(L67:L78) ->  | M79: =MAX(M67:M78) -> 0 | N79: =AVERAGE(N67:N78) ->  | O79: =MAX(O67:O78) -> 0

Sheet CO 0.5 hourly
A1: =+'Cover Page'!$B$29 -> Annual Performance Report 2023 | E1: =+'Cover Page'!$B$33 -> Javelin Park Energy Recovery Facility
A3: Monitoring of Carbon Monoxide (half hourly) | D3: Whole Installation | G3: See Notes in Cell Q3 | J3: =+A3 -> Monitoring of Carbon Monoxide (half hourly) | N3: Per Combustion Line | Q3: Notes:
A5: Please complete this tab for your plant if you have 1/2 hourly CO ELVs; otherwise, leave it blank and complete the CO 95% 10 min tab
Q7: User to add logic to complete Whole installation, Table A5:G18. From the data in Per Combustion Line, Table J6:O79, subject to No. of lines installed
A8: mg/Nm3 | B8: 1/2 Hourly Reference Periods | E8: Daily Reference Periods
A9: =+'Cover Page'!C39 -> 2023 | B9: 1/2 hourly CO ELV | C9: Monthly 1/2 hourly mean | D9: Highest 1/2 hourly maximum | E9: Daily CO ELV | F9: Monthly daily mean | G9: Highest daily maximum | J9: =+A9 -> 2023 | K9: mg/Nm3 | L9: Monthly 1/2 hourly mean | M9: Monthly 1/2 hourly maximum | N9: Monthly daily mean | O9: Monthly daily maximum
A10: Jan | B10: 100 | E10: 50 | J10: A1 | K10: Jan
A11: Feb | B11: =+B10 -> 100 | E11: =+E10 -> 50 | K11: Feb
A12: Mar | B12: =+B11 -> 100 | E12: =+E11 -> 50 | K12: Mar | Q12: Whole Installation table A5:G18:
A13: Apr | B13: 100 | E13: 50 | K13: Apr | Q13: Mean: for 1/2 hourly and daily periods calculate mean of values across all operational combustion lines for the month
A14: May | B14: 100 | E14: 50 | K14: May
A15: Jun | B15: 100 | E15: 50 | K15: Jun
A16: Jul | B16: 100 | E16: 50 | K16: Jul | Q16: Maximum: for 1/2 hourly and daily periods use the highest value across all operational combustion lines for the month
A17: Aug | B17: 100 | E17: 50 | K17: Aug
A18: Sep | B18: 100 | E18: 50 | K18: Sep
A19: Oct | B19: 100 | E19: 50 | K19: Oct
A20: Nov | B20: 100 | E20: 50 | K20: Nov
A21: Dec | B21: 100 | E21: 50 | K21: Dec
K22: Annual | L22: =AVERAGE(L10:L21) ->  | M22: =MAX(M10:M21) -> 0 | N22: =AVERAGE(N10:N21) ->  | O22: =MAX(O10:O21) -> 0
J24: =+A9 -> 2023 | K24: mg/Nm3 | L24: Monthly 1/2 hourly mean | M24: Monthly 1/2 hourly maximum | N24: Monthly daily mean | O24: Monthly daily maximum
J25: A2 | K25: Jan
K26: Feb
K27: Mar
K28: Apr
K29: May
K30: Jun
K31: Jul
K32: Aug
K33: Sep
K34: Oct
K35: Nov
K36: Dec
K37: Annual | L37: =AVERAGE(L25:L36) ->  | M37: =MAX(M25:M36) -> 0 | N37: =AVERAGE(N25:N36) ->  | O37: =MAX(O25:O36) -> 0
J39: =+A9 -> 2023 | K39: mg/Nm3 | L39: Monthly 1/2 hourly mean | M39: Monthly 1/2 hourly maximum | N39: Monthly daily mean | O39: Monthly daily maximum
J40: A3 | K40: Jan
K41: Feb
K42: Mar
K43: Apr
K44: May
K45: Jun
K46: Jul
K47: Aug
K48: Sep
K49: Oct
K50: Nov
A51: Comments : | K51: Dec
K52: Annual | L52: =AVERAGE(L40:L51) ->  | M52: =MAX(M40:M51) -> 0 | N52: =AVERAGE(N40:N51) ->  | O52: =MAX(O40:O51) -> 0
J54: =+A9 -> 2023 | K54: mg/Nm3 | L54: Monthly 1/2 hourly mean | M54: Monthly 1/2 hourly maximum | N54: Monthly daily mean | O54: Monthly daily maximum
J55: A4 | K55: Jan
K56: Feb
K57: Mar
K58: Apr
K59: May
K60: Jun
K61: Jul
K62: Aug
K63: Sep
K64: Oct
K65: Nov
K66: Dec
K67: Annual | L67: =AVERAGE(L55:L66) ->  | M67: =MAX(M55:M66) -> 0 | N67: =AVERAGE(N55:N66) ->  | O67: =MAX(O55:O66) -> 0
J69: =+A9 -> 2023 | K69: mg/Nm3 | L69: Monthly 1/2 hourly mean | M69: Monthly 1/2 hourly maximum | N69: Monthly daily mean | O69: Monthly daily maximum
J70: A5 | K70: Jan
K71: Feb
K72: Mar
K73: Apr
K74: May
K75: Jun
K76: Jul
K77: Aug
K78: Sep
K79: Oct
K80: Nov
K81: Dec
K82: Annual | L82: =AVERAGE(L70:L81) ->  | M82: =MAX(M70:M81) -> 0 | N82: =AVERAGE(N70:N81) ->  | O82: =MAX(O70:O81) -> 0

Sheet CO 95% 10 min
A1: =+'Cover Page'!$B$29 -> Annual Performance Report 2023 | E1: =+'Cover Page'!$B$33 -> Javelin Park Energy Recovery Facility
A3: Monitoring of Carbon Monoxide (10-minute avg) | E3: Whole Installation | H3: See Notes in Cell S3 | J3: =+A3 -> Monitoring of Carbon Monoxide (10-minute avg) | O3: Per Combustion Line | Q3: Notes: | S3: Notes:
A5: Please complete this tab for your plant if you have 10-minute average CO ELVs; otherwise, leave it blank and complete the CO 0.5 hourly tab
S7: User to add logic to complete Whole installation, Table A5:H18. From the data in Per Combustion Line, Table K6:Q79, subject to No. of lines installed
A8: mg/Nm3 | B8: 10-minute Reference Periods | F8: Daily Reference Periods
A9: =+'Cover Page'!C39 -> 2023 | B9: 95%ile 10-min avg CO ELV | C9: 95%ile 10-min avg maximum | D9: Monthly CO 10-min avg mean | E9: 10-min avg maximum | F9: Daily CO ELV | G9: Monthly daily mean | H9: Highest daily maximum | K9: =+A9 -> 2023 | L9: mg/Nm3 | M9: 95%ile 10-min avg maximum | N9: Monthly CO 10-min avg mean | O9: 10-min avg maximum | P9: Monthly daily mean | Q9: Monthly daily maximum
A10: Jan | B10: 150 | C10: 3.07 | D10: 1 | E10: 106 | F10: 50 | G10: 1.33 | H10: 3 | K10: A1 | L10: Jan | M10: 3.07 | N10: 1 | O10: 106 | P10: 1.33 | Q10: 3
A11: Feb | B11: =+B10 -> 150 | C11: 5.73 | D11: 2 | E11: 330 | F11: =+F10 -> 50 | G11: 2.14 | H11: 7 | L11: Feb | M11: 5.73 | N11: 2 | O11: 330 | P11: 2.14 | Q11: 7
A12: Mar | B12: =+B11 -> 150 | C12: 5.03 | D12: 2 | E12: 387 | F12: =+F11 -> 50 | G12: 1.69 | H12: 5 | L12: Mar | M12: 5.03 | N12: 2 | O12: 387 | P12: 1.69 | Q12: 5 | S12: Whole Installation table A5:H18:
A13: Apr | B13: 150 | C13: 3.38 | D13: 1 | E13: 376 | F13: 50 | G13: 1.12 | H13: 4 | L13: Apr | M13: 3.38 | N13: 1 | O13: 376 | P13: 1.12 | Q13: 4 | S13: Mean: for 10-min and daily periods use average of all operational combustion lines.
A14: May | B14: 150 | C14: 2.72 | D14: 1 | E14: 497 | F14: 50 | G14: 0.9 | H14: 3 | L14: May | M14: 2.72 | N14: 1 | O14: 497 | P14: 0.9 | Q14: 3
A15: Jun | B15: 150 | C15: 10.38 | D15: 3 | E15: 587 | F15: 50 | G15: 2.66 | H15: 11 | L15: Jun | M15: 10.38 | N15: 3 | O15: 587 | P15: 2.66 | Q15: 11
A16: Jul | B16: 150 | C16: 5.4 | D16: 2 | E16: 513 | F16: 50 | G16: 1.66 | H16: 8 | L16: Jul | M16: 5.4 | N16: 2 | O16: 513 | P16: 1.66 | Q16: 8 | S16: Maximum: for 10-min and daily periods use the highest of all operational combustion lines in any month.
A17: Aug | B17: 150 | C17: 4.2 | D17: 1 | E17: 470 | F17: 50 | G17: 1.23 | H17: 5 | L17: Aug | M17: 4.2 | N17: 1 | O17: 470 | P17: 1.23 | Q17: 5
A18: Sep | B18: 150 | C18: 12.3 | D18: 2 | E18: 284 | F18: 50 | G18: 2.264285714 | H18: 12 | L18: Sep | M18: 12.3 | N18: 2 | O18: 284 | P18: 2.264285714 | Q18: 12
A19: Oct | B19: 150 | C19: 3.49 | D19: 1 | E19: 294 | F19: 50 | G19: 1.13483871 | H19: 8 | L19: Oct | M19: 3.49 | N19: 1 | O19: 294 | P19: 1.13483871 | Q19: 8
A20: Nov | B20: 150 | C20: 5.92 | D20: 2 | E20: 715 | F20: 50 | G20: 2.144 | H20: 7 | L20: Nov | M20: 5.92 | N20: 2 | O20: 715 | P20: 2.144 | Q20: 7
A21: Dec | B21: 150 | C21: 3.82 | D21: 1 | E21: 498 | F21: 50 | G21: 1.429354839 | H21: 7 | L21: Dec | M21: 3.82 | N21: 1 | O21: 498 | P21: 1.429354839 | Q21: 7
L22: Annual | M22: =AVERAGE(M10:M21) -> 5.453333333 | O22: =MAX(O10:O21) -> 715 | P22: =AVERAGE(P10:P21) -> 1.641873272 | Q22: =MAX(Q10:Q21) -> 12
K24: =+A9 -> 2023 | L24: mg/Nm3 | M24: 95%ile 10-min avg maximum | N24: Monthly CO 10-min avg mean | O24: 10-min avg maximum | P24: Monthly daily mean | Q24: Monthly daily maximum
K25: A2 | L25: Jan
L26: Feb
L27: Mar
L28: Apr
L29: May
L30: Jun
L31: Jul
L32: Aug
L33: Sep
L34: Oct
L35: Nov
L36: Dec
L37: Annual | M37: =AVERAGE(M25:M36) ->  | O37: =MAX(O25:O36) -> 0 | P37: =AVERAGE(P25:P36) ->  | Q37: =MAX(Q25:Q36) -> 0
K39: =+A9 -> 2023 | L39: mg/Nm3 | M39: 95%ile 10-min avg maximum | N39: Monthly CO 10-min avg mean | O39: 10-min avg maximum | P39: Monthly daily mean | Q39: Monthly daily maximum
K40: A3 | L40: Jan
L41: Feb
L42: Mar
L43: Apr
L44: May
L45: Jun
L46: Jul
L47: Aug
L48: Sep
L49: Oct
L50: Nov
A51: Comments : | L51: Dec
A52: Environment Agency explanatory note: The 10-minute average ELV is based on the “95th percentile”. In this case this means that 95% of the 10 minute averages in the relevant 24-hour period (i.e. 137) must be below 150 mg/Nm3, and 5% (i.e. 7) are allowed to be any value above 150 mg/Nm3. Whilst we expect operators to minimise CO emissions at all times, it is perfectly acceptable for the value of the maximum 10-minute average to be above 150 mg/Nm3, provided the 95th percentile ELV has been met for that period. | L52: Annual | M52: =AVERAGE(M40:M51) ->  | O52: =MAX(O40:O51) -> 0 | P52: =AVERAGE(P40:P51) ->  | Q52: =MAX(Q40:Q51) -> 0
K54: =+A9 -> 2023 | L54: mg/Nm3 | M54: 95%ile 10-min avg maximum | N54: Monthly CO 10-min avg mean | O54: 10-min avg maximum | P54: Monthly daily mean | Q54: Monthly daily maximum
K55: A4 | L55: Jan
L56: Feb
L57: Mar
L58: Apr
L59: May
L60: Jun
L61: Jul
L62: Aug
L63: Sep
L64: Oct
L65: Nov
L66: Dec
L67: Annual | M67: =AVERAGE(M55:M66) ->  | O67: =MAX(O55:O66) -> 0 | P67: =AVERAGE(P55:P66) ->  | Q67: =MAX(Q55:Q66) -> 0
K69: =+A9 -> 2023 | L69: mg/Nm3 | M69: 95%ile 10-min avg maximum | N69: Monthly CO 10-min avg mean | O69: 10-min avg maximum | P69: Monthly daily mean | Q69: Monthly daily maximum
K70: A5 | L70: Jan
L71: Feb
L72: Mar
L73: Apr
L74: May
L75: Jun
L76: Jul
L77: Aug
L78: Sep
L79: Oct
L80: Nov
L81: Dec
L82: Annual | M82: =AVERAGE(M70:M81) ->  | O82: =MAX(O70:O81) -> 0 | P82: =AVERAGE(P70:P81) ->  | Q82: =MAX(Q70:Q81) -> 0

Sheet NH3
A1: =+'Cover Page'!$B$29 -> Annual Performance Report 2023 | E1: =+'Cover Page'!$B$33 -> Javelin Park Energy Recovery Facility
A3: Monitoring of Ammnonia emissions | D3: Whole Installation | G3: See Notes in Cell Q3 | J3: =+A3 -> Monitoring of Ammnonia emissions | N3: Per Combustion Line | Q3: Notes:
Q4: User to add logic to complete Whole installation, Table A5:G18. From the data in Per Combustion Line, Table J6:O79, subject to No. of lines installed
A5: mg/Nm3 | B5: 1/2 Hourly Reference Periods | E5: Daily Reference Periods
A6: =+'Cover Page'!C39 -> 2023 | B6: 1/2 hourly NH3 ELV | C6: Monthly 1/2 hourly mean | D6: Highest 1/2 hourly maximum | E6: Daily NH3 ELV* | F6: Monthly daily mean | G6: Highest daily maximum | J6: =+A6 -> 2023 | K6: mg/Nm3 | L6: Monthly 1/2 hourly mean | M6: Monthly 1/2 hourly maximum | N6: Monthly daily mean | O6: Monthly daily maximum
A7: Jan | B7: None | C7: 1 | D7: 3 | E7: None | F7: 0.58 | G7: 2 | J7: A1 | K7: Jan | L7: 1 | M7: 3 | N7: 0.58 | O7: 2
A8: Feb | B8: =+B7 -> None | C8: 1 | D8: 4 | E8: None | F8: 0.79 | G8: 1 | K8: Feb | L8: 1 | M8: 4 | N8: 0.79 | O8: 1
A9: Mar | B9: =+B8 -> None | C9: 1 | D9: 2 | E9: None | F9: 0.7 | G9: 1 | K9: Mar | L9: 1 | M9: 2 | N9: 0.7 | O9: 1 | Q9: Whole Installation table A5:G18:
A10: Apr | B10: None | C10: 0 | D10: 2 | E10: None | F10: 0.25 | G10: 1 | K10: Apr | L10: 0 | M10: 2 | N10: 0.25 | O10: 1 | Q10: Mean: for 1/2 hourly and daily periods calculate mean of values across all operational combustion lines for the month
A11: May | B11: None | C11: 0 | D11: 0 | E11: None | F11: -0.25 | G11: 0 | K11: May | L11: 0 | M11: 0 | N11: -0.25 | O11: 0
A12: Jun | B12: None | C12: 0 | D12: 2 | E12: None | F12: -0.19 | G12: 0 | K12: Jun | L12: 0 | M12: 2 | N12: -0.19 | O12: 0
A13: Jul | B13: None | C13: 0 | D13: 0 | E13: None | F13: -0.23 | G13: 0 | K13: Jul | L13: 0 | M13: 0 | N13: -0.23 | O13: 0 | Q13: Maximum: for 1/2 hourly and daily periods use the highest value across all operational combustion lines for the month
A14: Aug | B14: None | C14: 0 | D14: 0 | E14: None | F14: -0.2 | G14: 0 | K14: Aug | L14: 0 | M14: 0 | N14: -0.2 | O14: 0
A15: Sep | B15: None | C15: 0 | D15: 2 | E15: None | F15: 0.1285714286 | G15: 0 | K15: Sep | L15: 0 | M15: 2 | N15: 0.1285714286 | O15: 0
A16: Oct | B16: None | C16: 0 | D16: 0 | E16: None | F16: -0.2003225806 | G16: 0 | K16: Oct | L16: 0 | M16: 0 | N16: -0.2003225806 | O16: 0
A17: Nov | B17: None | C17: 0 | D17: 0 | E17: None | F17: -0.2033333333 | G17: 0 | K17: Nov | L17: 0 | M17: 0 | N17: -0.2033333333 | O17: 0
A18: Dec | B18: None | C18: 0 | D18: 1 | E18: 15 | F18: 0.1393548387 | G18: 1 | K18: Dec | L18: 0 | M18: 1 | N18: 0.1393548387 | O18: 1
E19: * ELV came into force on 3 December 2023 | K19: Annual | L19: =AVERAGE(L7:L18) -> 0.25 | M19: =MAX(M7:M18) -> 4 | N19: =AVERAGE(N7:N18) -> 0.1095225294 | O19: =MAX(O7:O18) -> 2
J21: =+A6 -> 2023 | K21: mg/Nm3 | L21: Monthly 1/2 hourly mean | M21: Monthly 1/2 hourly maximum | N21: Monthly daily mean | O21: Monthly daily maximum
J22: A2 | K22: Jan
K23: Feb
K24: Mar
K25: Apr
K26: May
K27: Jun
K28: Jul
K29: Aug
K30: Sep
K31: Oct
K32: Nov
K33: Dec
K34: Annual | L34: =AVERAGE(L22:L33) ->  | M34: =MAX(M22:M33) -> 0 | N34: =AVERAGE(N22:N33) ->  | O34: =MAX(O22:O33) -> 0
J36: =+A6 -> 2023 | K36: mg/Nm3 | L36: Monthly 1/2 hourly mean | M36: Monthly 1/2 hourly maximum | N36: Monthly daily mean | O36: Monthly daily maximum
J37: A3 | K37: Jan
K38: Feb
K39: Mar
K40: Apr
K41: May
K42: Jun
K43: Jul
K44: Aug
K45: Sep
K46: Oct
K47: Nov
A48: Comments : | K48: Dec
A49: An indicated ELV value of zero in the table above means that no ammonia limit is/was set in the permit. | K49: Annual | L49: =AVERAGE(L37:L48) ->  | M49: =MAX(M37:M48) -> 0 | N49: =AVERAGE(N37:N48) ->  | O49: =MAX(O37:O48) -> 0
J51: =+A6 -> 2023 | K51: mg/Nm3 | L51: Monthly 1/2 hourly mean | M51: Monthly 1/2 hourly maximum | N51: Monthly daily mean | O51: Monthly daily maximum
J52: A4 | K52: Jan
K53: Feb
K54: Mar
K55: Apr
K56: May
K57: Jun
K58: Jul
K59: Aug
K60: Sep
K61: Oct
K62: Nov
K63: Dec
K64: Annual | L64: =AVERAGE(L52:L63) ->  | M64: =MAX(M52:M63) -> 0 | N64: =AVERAGE(N52:N63) ->  | O64: =MAX(O52:O63) -> 0
J66: =+A6 -> 2023 | K66: mg/Nm3 | L66: Monthly 1/2 hourly mean | M66: Monthly 1/2 hourly maximum | N66: Monthly daily mean | O66: Monthly daily maximum
J67: A5 | K67: Jan
K68: Feb
K69: Mar
K70: Apr
K71: May
K72: Jun
K73: Jul
K74: Aug
K75: Sep
K76: Oct
K77: Nov
K78: Dec
K79: Annual | L79: =AVERAGE(L67:L78) ->  | M79: =MAX(M67:M78) -> 0 | N79: =AVERAGE(N67:N78) ->  | O79: =MAX(O67:O78) -> 0
